Cogmind - Beta 11 @@@ ROGUE MODE // 2022.03.23 @ 23:03:16 Player: HybriD Result: Destroyed by X-57 Shotgunner with Shotgun Performance ------------- Evolutions (2) 1000 Regions Visited (3) 600 Robots Destroyed (16) 80 Value Destroyed (703) 703 Prototype IDs (3) 60 Alien Tech Used (0) 0 Bonus (0) 0 TOTAL SCORE: 2443 Bonus ------- None Cogmind --------- Core Integrity 0/550 Matter 300/300 Energy 160/160 System Corruption 0% Temperature Cool (0) Movement Walking (400) Ox4 Location -8/Materials Parts ------- > --- POWER (2) -------- Light Nuclear Core > --- PROPULSION (3) --- Aluminum Leg > --- UTILITY (4) ------ High-capacity Storage Unit > --- WEAPON (2) ------- Scythe > --- INVENTORY (20) --- Light Nuclear Core Gauss Rifle Peak State ------------ > --- POWER ------------ Ion Engine Heavy Ion Engine > --- PROPULSION ------- Aluminum Leg Titanium Leg Titanium Leg > --- UTILITY ---------- High-capacity Storage Unit Improved Light Armor Plating > --- WEAPON ----------- Beam Rifle Scythe > --- INVENTORY -------- Light Nuclear Core Aluminum Leg Gauss Rifle [Rating: 20] Favorites ----------- Power Ion Engine Engine Ion Engine Power Core Light Nuclear Core Propulsion Compact Wheel Leg Titanium Leg Wheel Compact Wheel Utility High-capacity Storage Unit Device Sensor Array Storage High-capacity Storage Unit Processor Targeting Computer Protection Improved Light Armor Plating Weapon Light Assault Rifle Energy Gun Medium Laser Ballistic Gun Light Assault Rifle Ballistic Cannon Light Cannon Slashing Weapon Scythe Build | -11 -10 -9 -8 ------- Run | Scr Mat Mat Mat Slots Evolved 4 | . . 2 2 Power 1 | . . . 1 Propulsion 1 | . . 1 . Utility 2 | . . 1 1 Weapon . | . . . . Parts Attached 32 | 6 3 7 16 Power 7 | 1 . 2 4 Engine 6 | 1 . 2 3 Core 1 | . . . 1 Reactor . | . . . . Propulsion 8 | 2 . 1 5 Treads . | . . . . Leg 5 | . . . 5 Wheel 3 | 2 . 1 . Hover . | . . . . Flight . | . . . . Utility 9 | 1 3 2 3 Device 2 | . 1 . 1 Storage 2 | 1 1 . . Processor 2 | . . 1 1 Hackware . | . . . . Protection 3 | . 1 1 1 Artifact . | . . . . Weapon 8 | 2 . 2 4 Energy Gun 4 | 1 . . 3 Energy Cannon . | . . . . Ballistic Gun 2 | 1 . 1 . Ballistic Cannon 1 | . . 1 . Launcher . | . . . . Special Weapon . | . . . . Impact Weapon . | . . . . Slashing Weapon 1 | . . . 1 Piercing Weapon . | . . . . Special Melee Weapon . | . . . . Unidentified Prototypes 1 | . . 1 . Parts Lost 19 | . 1 . 18 Power 4 | . . . 4 Propulsion 6 | . . . 6 Utility 4 | . . . 4 Weapon 5 | . 1 . 4 Highest Loss Streak 7 | . 1 . 7 To Critical Strikes . | . . . . Average Slot Usage (%) 80 | . 93 79 70 Engine 12 | . 14 11 13 Leg 3 | . . . 7 Wheel 15 | . 25 14 9 Device 10 | . 12 11 7 Storage 11 | . 14 11 9 Processor 4 | . . 11 4 Protection 1 | . 1 . 2 Energy Gun 6 | . 13 . 6 Ballistic Gun 8 | . 11 10 4 Ballistic Cannon 3 | . . 10 1 Slashing Weapon 1 | . . . 3 Naked Turns . | . . . . Heaviest Build 61 | 13 49 50 61 Greatest Support 44 | 26 26 26 44 Greatest Overweight (x) 6 | . 3 3 6 Average Overweight (x) 1 | . . 2 2 Largest Inventory Capacity 20 | 8 20 20 20 Average Capacity 16 | 7 10 20 20 Most Carried 13 | 4 8 11 13 Average Carried 6 | 1 5 6 6 Final Capacity 20 | 8 20 20 20 Final Carried 11 | 2 7 11 2 Class Distribution -------------------- 100% | Mutant Dominant Class ---------------- Mutant | -10/Materials Mutant | -9/Materials Mutant | -8/Materials Resources | -11 -10 -9 -8 ----------- Run | Scr Mat Mat Mat Matter Collected 576 | 230 62 133 151 Remotely . | . . . . Salvage Created 715 | . 80 219 416 Parts 45 | . 6 15 24 Haulers Intercepted . | . . . . Recyclers Shooed . | . . . . Parts Field Recycled . | . . . . Retrieved Matter . | . . . . Parts Self-Destructed . | . . . . Prevented . | . . . . Kills | -11 -10 -9 -8 ------- Run | Scr Mat Mat Mat Combat Hostiles Destroyed 15 | . 2 5 8 Melee 4 | . . . 4 Guns 7 | . 2 2 3 Cannons 3 | . . 3 . AOE 1 | . . . 1 Classes Destroyed 5 | . 1 1 3 Builder 1 | . . . 1 Grunt 5 | . 2 2 1 Sentry 5 | . . 3 2 Specialist 1 | . . . 1 Hunter 4 | . . . 4 Best Kill Streak 3 | . 2 3 3 Combat Bots Only 3 | . 2 3 3 Max Kills in Single Turn 1 | . 1 1 1 Gunslinging . | . . . . Exploded 1 | . . . 1 Melee 1 | . . . 1 Uniques/NPCs Destroyed . | . . . . Combat | -11 -10 -9 -8 -------- Run | Scr Mat Mat Mat Damage Taken 2552 | . 227 254 2071 Core 680 | . 71 51 558 Absorbed by Shields . | . . . . Core Remaining (%) 86 | 100 71 87 . Volleys Fired 46 | 2 13 11 20 Largest 2 | 2 2 2 2 Hottest 96 | 70 70 55 96 Shots Fired 91 | 4 26 22 39 Gun 80 | 4 26 11 39 Cannon 11 | . . 11 . Launcher . | . . . . Special . | . . . . Kinetic 47 | 2 13 22 10 Thermal 35 | 2 13 . 20 Explosive . | . . . . Electromagnetic 9 | . . . 9 Robot Hit Streak 16 | 1 4 7 16 Robot Miss Streak 3 | 2 2 3 2 Penetration Max . | . . . . Secondary Targets 1 | . 1 . . Max Gunslinging Chain 1 | . 1 . . Shots Hit Robots 84 | 2 17 14 51 Core Hits 28 | . 6 8 14 Critical Kills . | . . . . Critical Parts Destroyed . | . . . . Critical Strikes 7 | . 1 . 6 Burn 1 | . 1 . . Sever 6 | . . . 6 Melee Attacks 27 | . . . 27 Impact . | . . . . Slashing 27 | . . . 27 Piercing . | . . . . Sneak Attacks 2 | . . . 2 Combat Hostiles . | . . . . Follow-up Attacks . | . . . . Damage Inflicted 1514 | 22 191 168 1133 Guns 654 | 22 191 54 387 Cannons 114 | . . 114 . Explosions 94 | . . . 94 Melee 652 | . . . 652 Ramming . | . . . . Kinetic 313 | 9 66 168 70 Thermal 451 | 13 125 . 313 Explosive . | . . . . Electromagnetic 98 | . . . 98 Impact . | . . . . Slashing 652 | . . . 652 Piercing . | . . . . Highest Corruption . | . . . . Average Corruption . | . . . . Corruption Purged . | . . . . Corruption Blocked . | . . . . Overload Shots . | . . . . Overflow Damage 42 | . . . 42 Projectiles . | . . . . Explosions . | . . . . Melee 42 | . . . 42 Knockbacks . | . . . . Impact . | . . . . Kinetic . | . . . . Secondary . | . . . . Self-Inflicted Damage . | . . . . Shots . | . . . . Rammed . | . . . . Targets Rammed . | . . . . Kicked . | . . . . Crushed . | . . . . Highest Temperature 250 | 40 250 25 180 Average Temperature 69 | 23 112 11 63 Received Heat Transfer 456 | . 126 105 225 Siege Activations . | . . . . Robots Corrupted . | . . . . Combat Hostiles . | . . . . Parts Fried . | . . . . Impact Corruptions . | . . . . Robots Melted . | . . . . Combat Hostiles . | . . . . Parts Melted 2 | . 1 . 1 Heat Transferred 1210 | 37 444 . 729 Parts Sabotaged . | . . . . Parts Stolen . | . . . . Parts Stripped . | . . . . Power Chain Reactions 1 | . . . 1 Missiles Intercepted . | . . . . Alert | -11 -10 -9 -8 ------- Run | Scr Mat Mat Mat Peak Influence 262 | . 110 262 224 Initial 110 | . . 42 110 Average 88 | . 33 110 127 Maximum Alert Level 1 | . . 1 1 Low Security (%) 89 | 100 100 72 91 Level 1 10 | . . 27 8 Level 2 . | . . . . Level 3 . | . . . . Level 4 . | . . . . Level 5 . | . . . . High Security . | . . . . Max Security . | . . . . Squads Dispatched 3 | . 2 . 1 Investigation 1 | . 1 . . Extermination . | . . . . Reinforcement 2 | . 1 . 1 Assault . | . . . . Garrison . | . . . . Intercept . | . . . . Searches Triggered . | . . . . Construction Impeded . | . . . . Haulers Reinforced . | . . . . Active Scanning Responses . | . . . . Cargo Convoy Interrupts . | . . . . Stealth | -11 -10 -9 -8 --------- Run | Scr Mat Mat Mat Distress Signals 1 | . . . 1 Communications Jammed . | . . . . Distress Signals . | . . . . Times Spotted 29 | . 8 8 13 Peak Tracking Total 4 | . 4 3 4 Tactical Retreats 2 | . . 2 . Traps | -11 -10 -9 -8 ------- Run | Scr Mat Mat Mat Traps Triggered 3 | . 3 . . Indirectly . | . . . . Trap Hack Attempts . | . . . . Triggered . | . . . . Disarmed . | . . . . Reprogrammed . | . . . . Reused . | . . . . Traps Extracted . | . . . . Installed . | . . . . Triggered . | . . . . Machines | -11 -10 -9 -8 ---------- Run | Scr Mat Mat Mat Machines Disabled . | . . . . Max in Single Turn . | . . . . Machines Sabotaged . | . . . . Garrisons Compromised . | . . . . Overloaded Fab Kills . | . . . . Hacking | -11 -10 -9 -8 --------- Run | Scr Mat Mat Mat Machines Accessed 6 | . 2 . 4 Terminals 4 | . 1 . 3 Fabricators . | . . . . Repair Stations . | . . . . Recycling Units 1 | . 1 . . Scanalyzers 1 | . . . 1 Garrison Access . | . . . . Total Hacks 25 | . 6 . 19 Successful 16 | . 3 . 13 Failed 9 | . 3 . 6 Catastrophic . | . . . . Database Lockouts . | . . . . Manual . | . . . . Terminals 17 | . 2 . 15 Fabricators . | . . . . Repair Stations . | . . . . Recycling Units 4 | . 4 . . Scanalyzers 4 | . . . 4 Garrison Access . | . . . . Terminal Hacks 10 | . 1 . 9 Record 4 | . . . 4 Robot Analysis 2 | . . . 2 Prototype ID Bank 1 | . 1 . . Alert Level 1 | . . . 1 Surveillance Status 1 | . . . 1 Zone Layout 1 | . . . 1 Fabricator Hacks . | . . . . Repair Station Hacks . | . . . . Recycling Unit Hacks 2 | . 2 . . Process 1 | . 1 . . Retrieve Matter 1 | . 1 . . Scanalyzer 4 | . . . 4 Insert Component 1 | . . . 1 Analyze 3 | . . . 3 Garrison Access Hacks . | . . . . Unauthorized Hacks . | . . . . Terminals . | . . . . Fabricators . | . . . . Repair Stations . | . . . . Recycling Units . | . . . . Scanalyzers . | . . . . Garrison Access . | . . . . Data Cores Recovered . | . . . . Used . | . . . . Hacking Detections 6 | . 2 . 4 Full Trace Events . | . . . . Feedback Events . | . . . . Feedback Blocked . | . . . . Robot Schematics Acquired . | . . . . Robots Built . | . . . . Authchips . | . . . . Time . | . . . . Total Robot Build Rating . | . . . . Part Schematics Acquired 1 | . . . 1 Parts Built . | . . . . Authchips . | . . . . Time . | . . . . Total Part Build Rating . | . . . . Parts Repaired . | . . . . Time . | . . . . Parts Recycled . | . . . . Recycled Matter . | . . . . Retrieved Matter . | . . . . Retrieved Components . | . . . . Parts Scanalyzed 1 | . . . 1 Part Schematics Acquired 1 | . . . 1 Parts Damaged . | . . . . Bothacking | -11 -10 -9 -8 ------------ Run | Scr Mat Mat Mat Used RIF Installer . | . . . . Robots Hacked . | . . . . Non-combat . | . . . . Combat . | . . . . Robot Hacks Applied . | . . . . Relay Couplers Released . | . . . . Fabnet Peak Effective % . | . . . . Robots Rewired . | . . . . Allies Hacked . | . . . . Hacks Repelled . | . . . . Allies | -11 -10 -9 -8 -------- Run | Scr Mat Mat Mat Total Allies . | . . . . Largest Group . | . . . . Highest-Rated Group . | . . . . Highest-Rated Ally . | . . . . Total Orders . | . . . . Ally Attacks . | . . . . Total Damage . | . . . . Kills . | . . . . Allies Corrupted . | . . . . Allies Melted . | . . . . Intel | -11 -10 -9 -8 ------- Run | Scr Mat Mat Mat Robot Analysis Total 2 | . . . 2 Derelict Logs Recovered . | . . . . Drone Launches . | . . . . Drone Recoveries . | . . . . Exploration | -11 -10 -9 -8 ------------- Run | Scr Mat Mat Mat Turns Passed 1211 | 68 356 317 470 Spaces Moved 713 | 42 255 198 218 Core 1 | 1 . . . Treads . | . . . . Legs 42 | . . . 42 Wheels 670 | 41 255 198 176 Hover . | . . . . Flight . | . . . . Fastest Speed 50 | 50 90 105 105 Average Speed 120 | 89 98 131 141 Slowest Speed 400 | 100 145 145 400 Overloaded Moves . | . . . . Propulsion Burnouts . | . . . . Robots Hopped . | . . . . Cave-ins Triggered . | . . . . Exploration Rate (%) 17 | 4 25 21 21 Regions Visited 3 Branch Regions . Pre-discovered Areas . | . . . . Known Exits Taken . | . . . . Unknown Exits Taken 3 | 1 1 1 . Scrap Searched . | . . . . Spaces Dug . | . . . . Terrain Destroyed 9 | . . . 9 Melee . | . . . . Projectile . | . . . . AOE 9 | . . . 9 Terrain Rammed . | . . . . Walls Destroyed . | . . . . Machines Disabled . | . . . . Actions | -11 -10 -9 -8 --------- Run | Scr Mat Mat Mat Total 939 | 68 335 232 304 Wait 88 | 11 57 9 11 Move 710 | 41 254 197 218 Hop . | . . . . Pick Up 32 | 8 7 8 9 Fast Attach . | . . . . Attach 26 | 6 1 4 15 Detach . | . . . . Swap 6 | . 2 3 1 Drop 4 | . 1 . 3 Fire 46 | 2 13 11 20 Melee 27 | . . . 27 Ram . | . . . . Kick . | . . . . Crush . | . . . . Escape Stasis . | . . . . Rewire . | . . . . Trap . | . . . . Miscellaneous . | . . . . Route ------- -11/Scrapyard -10/Materials -9/Materials -8/Materials History --------- Turn | Location | Event 23 | -11/Scrapyard | Discovered new exit (range 16) 69 | -11/Scrapyard | Entered Materials 303 | -10/Materials | Build established: Mutant 387 | -10/Materials | Discovered new exit (range 16) 425 | -10/Materials | Entered another Materials area 425 | -9/Materials | Evolved 2 slots: Propulsion x1, Utility x1 696 | -9/Materials | Discovered new exit (range 15) 742 | -9/Materials | Entered another Materials area 742 | -8/Materials | Evolved 2 slots: Power x1, Utility x1 1000 | -8/Materials | Lost 7 parts (2p1n3u1w) 1066 | -8/Materials | Lost 3 parts (1n2w) 1100 | -8/Materials | Core integrity fell below 50% 1158 | -8/Materials | Core integrity fell below 20% 1166 | -8/Materials | Lost 7 parts (2p3n1u1w) 1212 | -8/Materials | Destroyed by X-57 Shotgunner with Shotgun Last Messages --------------- 01134_ Sneak attack on R-06 Scavenger. 01134_ Destroyed Lgt. Ion Engine. 01134_ R-06 Scavenger inserts Assault Rifle into recycling unit. 01135_ Titanium Leg destroyed. 01136_ K-01 Serf collects debris. 01137_ R-06 Scavenger inserts VSS Leg into recycling unit. 01140_ R-06 Scavenger inserts Aluminum Leg into recycling unit. 01142_ Y-45 Defender Lgt. Armor Plating severed. 01143_ R-06 Scavenger inserts Shotgun into recycling unit. 01144_ Recycling unit begins recycling process. 01147_ Y-45 Defender destroyed. 01147_ R-06 Scavenger collects Lgt. Treads. 01148_ Acquired 20 matter. 01151_ R-06 Scavenger collects Hvy. Assault Rifle. 01154_ R-06 Scavenger collects Heat Sink. 01175_ Carbon-fiber Leg destroyed. 01183_ K-01 Serf collects debris. 01193_ K-01 Serf cleans the Electrolysis Chamber. 01203_ X-57 Shotgunner Hpw. Shotgun severed. 01206_ X-57 Shotgunner Hrd. Medium Armor Plating severed. Map ----- +----------------------------------------------------+ | ## ""??# +??????? ?????????????????? | | ######### " #??????? ?????????????????? | | """ #???????#!#?????????????????? | | ########### """ +???????#%#?????????????????? | | ??????????# """ #???????#=#?????????????????? | | ??????????# "" #???????# #?????????????????? | | ????????###### """ #???????# #?????????????????? | | ######??# ?# "" #???????# #?????????????????? | | # """"??# ?# "" #?????### ##????????????????? | | # ""T"??#! # " #?????# %["##???????????????? | | # ??# [ # #?????###%#"#???????????????? | | # ??# + #??#####[!=##???????????????? | | # ??# ! # #######??# %*"#???????????????? | | + """??# # #????????# ### ##???????????????? | | # """"??# ?# ########## #?#####????????????????? | | # """"??#= ?# !*%% % #??????????????????????? | | # """"??###??#[% ##########??????????????????????? | | # """??????##[ # #########??????????????????? | | # ??????#% # "" # #????????????????? | | ######??????# # "Y # """ """ #????????????????? | | ????????????# *# "" # """ """ #????????????????? | | ????????????# =!/% # """ """ #????????????????? | | ????????????####[#!] !# #????????????????? | | ???????????????# # # !#????????????????? | | ???????????????# + # k[ #????????????????? | | ???????????????# # ]# @[ #????????????????? | | ???????????????# #########x###########+#?????????? | | ???????????????# ! ???????? | | ???????????????+ ^ ???????? | | ???????????????# w ???????? | | ???????????????####"#############+######+????????? | | ????????????????? ????????????????????????????? | | ???????????????# ? ????????????????????????????? | | ????????????????? "" ???????????????????????????? | | ?????????????????S"" ???????????????????????????? | | ???????????????? "" ??????????????????????????? | | ????????????????#######??????????????????????????? | | | | | | | | | | | | | | | | | | | | | | | | | | | +----------------------------------------------------+ Best States ------------- Heat Dissipation 45 Energy Generation 19 Energy Capacity 430 Matter Stores 300 Matter Capacity 300 Sight Range 16 Robot Scan Range 14 Terrain Scan Density 10 Armor Coverage 150 Evasion (%) 42 Targeting Accuracy 8 Item Schematics ----------------- Aluminum Leg | -8/Materials | Scanalyzed Robot Schematics ------------------ None Fabricated ------------ Nothing Alien Tech Used ----------------- None Achievements -------------- None Challenges ------------ None Game ------ Seed ChipForceSegregator Manual? 0 Play Time 00:17:59 Cumulative 99.8 hours Start 2022.03.23 @ 22:47:38 End 2022.03.23 @ 23:03:16 Sessions 1 Manual Loads 0 Difficulty Rogue Special Mode None Game No. 97 Rogue 97 Adventurer 0 Explorer 0 Win Type - Total 0 Types 0/0/0/0/0/0/0/0/0 Lore% 42 Gallery% 56 Achievement% 30 Wizard Run 0 Options --------- ASCII 0 Keyboard 0 Movement Mouse Keybinds 0 Fullscreen 2 Font 18/Terminus Map View 76x50 Tactical HUD 1 Map Filters NONE Filters NONE Steam 1 RUN: 8ee415f8-f6ad-4b8d-a6c5-4dc23334cfd1